bitfinex/quotes_ETHUSD_20260302
["timestamp","ask_amount","ask_price","bid_price","bid_amount"]
[1772454815723,4.64429777,1939.1,1938.6,2.86361995]
[1772454817738,3.35498608,1939.0,1938.5,0.0011]
[1772454819838,3.35498608,1938.8,1938.5,0.0011]
[1772454820005,5.85198608,1938.7,1938.5,0.0011]
[1772454820946,3.35498608,1938.6,1938.4,0.0011]
[1772454821431,3.35498608,1938.6,1938.1,0.0011]
[1772454821805,3.35498608,1938.4,1938.1,0.0011]
[1772454822035,5.85298608,1938.3,1938.1,0.0011]
[1772454822946,2.498,1938.3,1938.1,2.74883718]
[1772454823109,2.498,1938.3,1938.2,0.0011]
[1772454823600,5.85298608,1938.3,1938.2,0.0011]
[1772454825035,2.498,1938.6,1938.2,2.72049435]
[1772454828716,2.498,1938.6,1938.2,4.01029719]
[1772454828925,2.498,1938.6,1938.3,2.65806978]
[1772454831425,2.498,1938.6,1938.3,3.9478554]
[1772454832337,2.498,1938.6,1938.3,2.65806978]
[1772454835234,2.498,1938.6,1938.4,0.0011]
[1772454835754,0.001,1938.5,1938.4,0.0011]
[1772454837255,3.14351632,1938.5,1938.4,0.0011]
[1772454837847,0.001,1938.5,1938.4,0.0011]
[1772454839448,0.001,1938.5,1938.4,2.52658198]
[1772454839974,0.001,1938.9,1938.4,2.52658198]
[1772454840358,4.43291687,1938.9,1938.4,2.52658198]
[1772454840932,5.64151632,1938.9,1938.4,2.52658198]
[1772454841643,3.14351632,1938.9,1938.6,2.49993623]
[1772454842556,0.001,1938.9,1938.6,2.49993623]
[1772454843762,0.001,1938.9,1938.6,3.78949103]
[1772454844755,0.001,1938.9,1938.7,2.46213512]
[1772454846576,0.001,1938.9,1938.5,2.4373006]
[1772454847377,0.001,1938.8,1938.5,2.4373006]
[1772454847939,0.001,1938.8,1938.5,2.43201235]
[1772454849068,0.001,1938.8,1938.5,3.72166698]
[1772454849283,3.14251632,1939.3,1938.6,2.3944511]
[1772454849443,2.493,1939.4,1938.6,2.3944511]
[1772454849643,4.81451632,1939.5,1938.6,2.3944511]
[1772454849858,3.14251632,1939.4,1938.6,2.3823522]
[1772454853182,3.14251632,1939.4,1938.8,2.34652525]
[1772454853183,3.78010763,1939.4,1938.8,2.34652525]
[1772454853484,2.88189799,1939.3,1938.8,2.34652525]
[1772454854456,2.88189799,1939.3,1938.5,3.62019119]
[1772454854663,2.88189799,1939.3,1938.4,1.29079958]
[1772454854957,2.88189799,1939.3,1938.4,2.33168888]
[1772454855579,2.88189799,1939.1,1938.4,3.62140343]
[1772454855877,2.88189799,1939.1,1938.4,2.33168888]
[1772454856192,2.88189799,1939.0,1938.4,0.0011]
[1772454856487,2.88189799,1938.8,1938.4,0.0011]
[1772454857584,1.2895239,1938.7,1938.4,0.0011]
[1772454857782,4.37991421,1938.7,1938.4,0.0011]
[1772454858583,3.09039031,1938.6,1938.4,0.0011]
[1772454859590,4.37998073,1938.6,1938.5,0.0011]
[1772454862166,4.37987941,1938.8,1938.5,2.23651088]
[1772454862366,5.58239031,1938.7,1938.5,0.0011]
[1772454862688,3.09039031,1938.6,1938.5,0.0011]
[1772454865174,4.37998073,1938.6,1938.5,0.0011]
[1772454865374,3.09039031,1938.6,1938.5,0.0011]
[1772454865674,6.87395521,1938.7,1938.5,0.0011]
[1772454865988,3.09039031,1938.6,1938.5,0.0011]
[1772454866172,3.09039031,1938.6,1938.4,0.0011]
[1772454866598,4.38000817,1938.6,1938.4,0.0011]
[1772454867470,3.09039031,1938.6,1938.4,0.0011]
[1772454867670,3.09039031,1938.7,1938.4,2.18266648]
[1772454867877,3.09039031,1938.7,1938.4,0.0011]
[1772454868498,2.495,1938.6,1938.4,0.0011]
[1772454869194,7.12364277,1938.6,1938.4,0.0011]
[1772454869365,3.33903963,1938.4,1938.2,0.0011]
[1772454869570,3.33903963,1938.4,1938.1,0.0011]
[1772454869571,3.09039031,1938.2,1938.1,0.0011]
[1772454870184,3.33903963,1938.2,1938.0,0.00263886]
[1772454870693,4.38031343,1938.1,1938.0,0.00263886]
[1772454871089,4.38031343,1938.1,1937.9,1e-08]
[1772454871675,3.09039031,1938.0,1937.9,1e-08]
[1772454871996,3.09039031,1938.0,1937.8,0.0041]
[1772454871997,5.58839031,1938.0,1937.8,0.0041]
[1772454872885,3.09039031,1937.9,1937.5,0.003]
[1772454873085,3.09039031,1937.9,1937.5,0.0071]
[1772454874497,3.09039031,1937.9,1937.6,0.0041]
[1772454874706,3.09039031,1938.4,1937.6,2.10755313]
[1772454874916,3.09039031,1938.6,1937.8,2.09713664]
[1772454875093,4.37998729,1938.6,1937.8,2.09713664]
[1772454875280,3.09039031,1938.6,1937.8,2.09713664]
[1772454875599,3.09039031,1938.6,1938.0,2.09713664]
[1772454875971,3.09039031,1938.5,1938.1,2.09087347]
[1772454876172,5.59139031,1938.7,1938.1,2.08677347]
[1772454876400,5.59139031,1938.7,1938.2,0.0041]
[1772454876611,6.88092111,1938.7,1938.2,0.0041]
[1772454876808,6.88092111,1938.7,1938.2,1.29395656]
[1772454877174,5.59139031,1938.7,1938.2,1.29395656]
[1772454877900,3.09039031,1938.7,1938.3,2.0703052]
[1772454878079,2.503,1938.8,1938.3,2.0703052]
[1772454878279,3.09139031,1938.8,1938.4,0.0041]
[1772454878479,6.88185023,1938.8,1938.4,0.0041]
[1772454878914,6.88185023,1938.8,1938.5,0.0041]
[1772454879112,6.88185023,1938.8,1938.3,3.35595825]
[1772454879308,5.59239031,1938.8,1938.4,0.0041]
[1772454879606,5.59239031,1938.8,1938.4,2.06009918]
[1772454880885,5.59239031,1938.8,1938.4,3.34976031]
[1772454882504,5.59239031,1938.8,1938.5,0.0041]
[1772454883218,0.001,1938.8,1938.6,0.0041]
[1772454884519,0.001,1938.8,1938.7,0.0041]
[1772454884722,0.001,1939.2,1938.7,2.00983197]
[1772454884916,0.001,1939.2,1938.9,1.99482802]
[1772454885220,0.001,1939.2,1939.0,3.28415241]
[1772454885890,0.001,1939.2,1939.1,1.98914717]
[1772454886518,0.001,1939.2,1939.1,0.0041]
[1772454886717,0.001,1939.2,1938.8,1.98504717]
[1772454886898,0.001,1939.2,1938.7,1.28946313]
[1772454886899,3.09139031,1939.2,1938.7,1.28946313]
[1772454887218,3.09139031,1939.2,1938.8,0.0041]
[1772454888098,0.001,1939.2,1938.9,0.0041]
[1772454888501,2.84417375,1939.2,1938.9,0.0041]
[1772454889524,0.001,1939.2,1939.0,0.0041]
[1772454889691,0.001,1939.2,1939.0,1.95716608]
[1772454890184,0.001,1939.2,1939.0,3.2464805]
[1772454890731,0.001,1939.2,1939.0,1.95716608]
[1772454892127,0.001,1939.2,1939.0,3.24648587]
[1772454892295,0.001,1939.2,1939.0,1.95306608]
[1772454894844,0.001,1939.2,1939.1,0.0041]
[1772454895632,2.84417375,1939.2,1939.1,0.0041]
[1772454896136,2.84417375,1939.2,1938.7,1.28946766]
[1772454896472,2.84417375,1939.2,1938.6,3.17618341]
[1772454896626,2.84417375,1939.2,1938.7,0.0041]
[1772454896828,4.13339922,1939.2,1938.7,1.89073972]
[1772454897043,0.001,1939.2,1938.8,1.88142924]
[1772454897216,0.001,1939.2,1939.0,0.0011]
[1772454897421,0.001,1939.1,1939.0,0.0011]
[1772454901738,0.001,1939.1,1939.0,0.0052]
[1772454902347,2.84317375,1939.4,1939.1,0.0041]
[1772454902652,2.84517375,1939.3,1939.1,0.0041]
[1772454903439,4.13213234,1939.6,1939.2,0.0041]
[1772454903637,4.13213234,1939.6,1939.2,1.82646948]
[1772454903845,2.84317375,1939.5,1939.2,0.0041]
[1772454905248,4.13216886,1939.5,1939.2,0.0041]
[1772454906121,2.84317375,1939.5,1939.2,0.0041]
[1772454908246,3.78997061,1939.6,1939.3,0.0041]
[1772454908457,6.63314436,1939.6,1939.3,0.0041]
[1772454909422,6.63310686,1939.6,1939.4,0.0041]
[1772454909627,5.34417375,1939.6,1939.4,0.0041]
[1772454909927,6.63310317,1939.6,1939.4,0.0041]
[1772454910352,3.78992942,1939.6,1939.4,0.0041]
[1772454910554,2.84317375,1939.5,1939.4,0.0041]
[1772454911446,2.84317375,1939.5,1939.0,0.0011]
[1772454912450,2.84317375,1939.3,1939.0,0.0011]
[1772454912757,5.34517375,1939.2,1939.0,0.0011]
[1772454915361,6.63440362,1939.2,1939.0,0.0011]
[1772454915937,6.49721149,1939.6,1939.0,1.7088593]
[1772454916347,2.70424448,1939.5,1939.0,1.7088593]
[1772454917159,2.70424448,1939.5,1939.1,1.69927772]
[1772454919152,2.70424448,1939.5,1939.1,2.98850238]
[1772454919342,3.79395814,1939.6,1939.2,1.68056156]
[1772454919546,0.001,1939.8,1939.2,1.68056156]
[1772454919867,2.60175828,1939.7,1939.0,1.29039893]
[1772454920061,2.60175828,1939.5,1939.0,0.0011]
[1772454920254,2.60175828,1939.5,1939.0,2.96263446]
[1772454920568,2.60175828,1939.5,1939.0,0.0011]
[1772454920569,2.60175828,1939.4,1939.0,0.0011]
[1772454920942,2.60175828,1939.1,1938.7,0.0011]
[1772454921270,2.60175828,1938.7,1938.2,1.66389491]
[1772454924242,2.60175828,1938.6,1938.1,1.28987065]
[1772454924437,2.60175828,1938.6,1938.2,1.63925475]
[1772454926487,2.60175828,1938.6,1938.2,2.92907767]
[1772454927243,2.60175828,1938.6,1938.2,2.90465038]
[1772454928177,2.60175828,1938.5,1938.0,2.89827666]
[1772454928347,2.60175828,1938.3,1938.0,0.00153886]
[1772454931824,2.60175828,1938.3,1937.1,0.00722461]
[1772454931825,2.60175828,1938.2,1937.1,0.00722461]
[1772454932107,2.60175828,1938.2,1937.0,9.954e-05]
[1772454932108,2.60175828,1937.5,1937.0,9.954e-05]
[1772454932588,2.60175828,1937.4,1936.4,0.003]
[1772454932762,2.60175828,1937.4,1936.0,0.15512726]
[1772454932763,2.60175828,1936.5,1936.0,0.15512726]
[1772454932964,2.60175828,1936.9,1936.1,1.95771356]
[1772454933174,2.60175828,1937.1,1936.2,1.95771356]
[1772454933377,2.60175828,1937.0,1936.2,1.95771356]
[1772454933555,2.60175828,1936.9,1936.0,1.44643821]
[1772454934490,2.60175828,1936.9,1936.0,1.44643717]
[1772454934878,1.29078893,1936.8,1936.0,1.44643717]
[1772454935190,2.516,1936.7,1936.0,0.15512726]
[1772454935391,2.60175828,1936.6,1936.0,0.15512726]
[1772454935768,2.60175828,1936.6,1936.0,1.44644893]
[1772454936099,2.60175828,1936.4,1935.5,1.98315785]
[1772454937096,2.60175828,1936.7,1935.8,1.97985096]
[1772454938200,6.39520123,1937.0,1935.4,3.26374821]
[1772454938201,2.60175828,1936.5,1935.4,3.26374821]
[1772454938386,2.60175828,1936.2,1935.3,3.26688009]
[1772454939097,2.60175828,1936.2,1935.4,1.96646304]
[1772454939302,2.60175828,1936.1,1935.3,1.29485452]
[1772454940201,2.60175828,1936.1,1935.3,1.29485213]
[1772454940782,2.60175828,1936.1,1935.4,1.96090517]
[1772454941102,2.60175828,1936.1,1935.5,3.24700792]
[1772454941288,2.60175828,1936.5,1935.6,1.95535202]
[1772454943307,2.60175828,1936.5,1935.7,1.29152244]
[1772454943308,3.8927478,1936.5,1935.7,1.29152244]
[1772454943483,2.60175828,1936.4,1935.7,1.29152244]
[1772454943801,2.60175828,1936.4,1935.7,3.23578258]
[1772454943973,2.60175828,1936.4,1935.8,1.93872154]
[1772454944497,2.60175828,1936.4,1935.7,1.29152244]
[1772454945280,2.60175828,1936.7,1935.9,1.29138901]
[1772454946608,2.60175828,1936.7,1936.0,0.0011]
[1772454947313,3.89265514,1936.7,1936.1,1.29125561]
[1772454947473,2.71714542,1936.6,1936.1,1.29125561]
[1772454947813,2.71714542,1936.6,1936.0,1.29238091]
[1772454949389,2.71714542,1936.5,1936.0,0.0011]
[1772454950584,2.71714542,1936.7,1936.0,1.90740756]
[1772454951294,2.71714542,1936.7,1936.1,1.29125561]
[1772454952175,2.71714542,1936.7,1936.2,1.89529177]
[1772454953527,2.71714542,1936.7,1936.3,1.29112224]
[1772454953891,0.001,1936.8,1936.3,3.17542039]
[1772454954092,0.001,1936.8,1936.4,1.88429815]
[1772454954290,0.001,1936.8,1936.3,1.29112224]
[1772454954689,2.71714542,1936.7,1936.1,5.16487171]
[1772454955092,2.71714542,1936.6,1936.0,0.0011]
[1772454955319,1.29098889,1936.5,1936.0,0.0011]
[1772454955506,2.71714542,1936.4,1936.0,0.0011]
[1772454957035,2.71714542,1936.4,1935.9,0.0011]
[1772454957402,2.71714542,1936.4,1935.7,0.0011]
[1772454957403,2.71714542,1936.2,1935.7,0.0011]
[1772454957827,2.71714542,1936.1,1935.7,0.0011]
[1772454958730,2.71714542,1936.0,1935.3,0.0030658]
[1772454958941,2.71714542,1936.0,1935.3,1.29485516]
[1772454959633,2.71714542,1935.8,1935.3,0.0030658]
[1772454962430,2.71714542,1936.0,1935.3,1.84481508]
[1772454962619,2.71714542,1936.0,1935.3,0.0030658]
[1772454964309,2.71714542,1935.8,1935.3,0.0030658]
[1772454965206,2.506,1936.2,1935.3,1.82853997]
[1772454965411,0.001,1936.5,1935.4,1.82547417]
[1772454966238,2.71814542,1936.5,1935.6,1.82006116]
[1772454966436,0.001,1936.5,1935.6,1.82006116]
[1772454967929,0.001,1936.5,1935.8,1.80925342]
[1772454968121,0.001,1936.8,1935.8,1.80925342]
[1772454968318,0.001,1936.8,1936.0,1.80825342]
[1772454968615,2.71814542,1936.8,1936.0,1.80825342]
[1772454970141,0.001,1936.8,1936.0,1.80825342]
[1772454970338,0.001,1936.8,1935.9,1.29138901]
[1772454970543,0.001,1936.8,1935.9,1.79749954]
[1772454970715,2.71814542,1936.8,1935.9,1.79749954]
[1772454970916,0.001,1936.8,1935.9,1.79749954]
[1772454971237,0.001,1936.8,1936.1,1.79211729]
[1772454971567,0.001,1936.4,1936.1,1.79211729]
[1772454971843,0.001,1936.8,1936.1,1.79211729]
[1772454972011,0.001,1936.8,1936.2,1.78674132]
[1772454972455,0.001,1936.8,1936.4,1.78674132]
[1772454972608,0.00153886,1937.0,1936.4,1.78674132]
[1772454973947,0.00153886,1937.0,1936.3,1.29112224]
[1772454973948,0.00153886,1937.0,1936.6,1.77661812]
[1772454974353,0.00153886,1937.0,1936.5,2.274]
[1772454974560,0.00153886,1937.0,1936.6,1.29092223]
[1772454974720,2.53678672,1937.0,1936.2,5.16458051]
[1772454975227,2.53524786,1936.9,1935.9,5.16552382]
[1772454976623,2.53524786,1936.8,1935.9,5.16552382]
[1772454976944,2.53524786,1936.8,1935.9,6.93143114]
[1772454978948,2.53524786,1936.8,1936.0,1.75573836]
[1772454980448,3.82605053,1936.8,1936.0,1.75573836]
[1772454980653,2.61236217,1936.7,1936.0,1.75573836]
[1772454981743,2.61236217,1936.7,1936.1,1.29125561]
[1772454982814,2.61236217,1936.6,1936.1,1.29125561]
[1772454983424,2.61236217,1936.6,1936.1,1.29235561]
[1772454983824,2.61236217,1936.6,1936.1,0.0011]
[1772454984847,0.001,1936.7,1936.2,1.72380781]
[1772454985935,0.001,1936.7,1936.3,1.29112224]
[1772454986456,0.00153886,1937.0,1936.4,1.71321848]
[1772454986759,2.61236217,1936.9,1936.2,1.29113958]
[1772454987058,2.61236217,1936.9,1936.2,2.99807369]
[1772454987241,0.00153886,1937.0,1936.3,2.54269555]
[1772454987937,0.00153886,1937.0,1936.4,1.29105556]
[1772454988337,2.61390103,1937.0,1936.4,1.29105556]
[1772454988935,0.00153886,1937.0,1936.4,3.83375111]
[1772454991542,0.00153886,1937.0,1936.5,2.54269555]
[1772454991972,0.00153886,1937.0,1936.4,1.29105556]
[1772454993474,2.61390103,1937.0,1936.4,1.29105556]
[1772454993977,2.61390103,1937.0,1936.2,3.57213279]
[1772454994146,2.61236217,1936.8,1936.2,3.57213279]
[1772454995069,3.90315359,1936.8,1936.2,3.57213279]
[1772454996544,2.61236217,1936.7,1936.2,3.57213279]
[1772454997874,2.61236217,1936.7,1936.2,1.29113279]
[1772454998382,0.001,1936.8,1936.3,2.54269555]
[1772454999673,0.001,1936.8,1936.4,1.29105556]
[1772454999863,0.001,1936.8,1936.4,3.83375111]
[1772455000170,0.001,1936.8,1936.4,6.11775111]
[1772455000960,0.001,1936.8,1936.5,2.54269555]
[1772455003445,0.001,1936.8,1936.4,2.284]
[1772455003782,2.61336217,1936.8,1936.4,3.57505092]
[1772455004770,0.001,1936.8,1936.4,3.57505092]
[1772455005278,0.001,1936.8,1936.4,6.11774647]
[1772455005481,0.001,1936.8,1936.5,2.54269555]
[1772455005976,0.001,1936.8,1936.4,3.57605092]
[1772455006281,0.001,1936.8,1936.4,3.57705092]
[1772455006481,0.001,1936.8,1936.4,3.57700914]
[1772455006679,2.61236217,1936.7,1936.2,1.29118892]
[1772455007663,2.64555549,1936.6,1936.1,0.0011]
[1772455008554,2.64555549,1936.6,1936.3,0.0011]
[1772455009671,0.001,1936.8,1936.3,0.0011]
[1772455009883,0.001,1936.8,1936.3,2.52126561]
[1772455010254,2.64555549,1936.7,1936.2,0.0011]
[1772455010482,2.64555549,1936.7,1934.8,2.49050892]
[1772455010483,0.61850208,1933.3,1932.7,10.7501652]
[1772455010677,1e-08,1933.4,1932.5,2.76906434]
[1772455010877,1.6396231,1934.2,1932.6,46.25574886]
[1772455010878,0.00442109,1933.7,1932.6,46.25574886]
[1772455011190,6.03716339,1932.8,1932.7,10.18844426]
[1772455011378,9.1316923,1933.2,1932.8,1.80975686]
[1772455011585,0.54984649,1932.8,1932.6,17.89869796]
[1772455011792,4.65950736,1932.8,1932.7,4.06259152]
[1772455012087,7.71868799,1933.7,1932.8,2.52016561]
[1772455012266,1.16636433,1932.7,1932.1,0.1535884]
[1772455012464,2.64555549,1933.4,1932.7,1.16636433]
[1772455012656,2.64555549,1933.4,1932.3,2.52016561]
[1772455012863,0.43688414,1933.3,1932.3,2.52016561]
[1772455013394,1.24525446,1933.5,1932.3,2.52016561]
[1772455013395,0.43688414,1933.2,1932.3,2.52016561]
[1772455013690,1.24525446,1933.5,1932.3,2.52016561]
[1772455013878,0.43688414,1933.4,1932.5,2.52016561]
[1772455014264,0.43688414,1933.3,1932.5,2.52016561]
[1772455014591,2.53828755,1933.5,1932.5,2.52016561]
[1772455014792,0.43688414,1933.4,1932.5,2.52016561]
[1772455015409,0.43688414,1933.3,1932.5,2.52016561]
[1772455015700,0.43688414,1933.5,1932.6,2.52016561]
[1772455015905,0.43688414,1933.3,1932.7,3.81369279]
[1772455016187,2.64555549,1933.9,1932.8,2.52016561]
[1772455016411,2.64555549,1933.9,1932.9,2.52016561]
[1772455016756,3.93830021,1933.9,1932.9,2.52016561]
[1772455017063,1.29274427,1933.9,1932.9,2.52016561]
[1772455017991,1.29419656,1934.0,1932.9,3.81351088]
[1772455018370,1.24525446,1933.7,1932.9,2.52016561]
[1772455018571,1.24525446,1933.7,1932.6,3.8137202]
[1772455019284,3.89080995,1933.7,1932.6,3.8137202]
[1772455019665,3.89080995,1933.7,1932.6,3.81375525]
[1772455019862,2.64555549,1933.6,1932.6,3.81375503]
[1772455020062,1.24525446,1933.4,1932.6,2.52016561]
[1772455020296,2.64555549,1933.0,1932.1,1.44751153]
[1772455020480,1.29299198,1933.5,1932.2,2.52016561]
[1772455020687,3.93842139,1933.7,1932.4,2.52016561]
[1772455020885,3.93842139,1933.7,1933.0,0.0011]
[1772455021078,5.18367585,1933.7,1933.0,0.0011]
[1772455021562,3.89080995,1933.7,1933.0,0.0011]
[1772455021758,1.29422543,1934.0,1933.0,2.52126561]
[1772455021962,0.00153886,1934.0,1933.0,2.52126561]
[1772455022186,0.00153886,1934.0,1933.2,2.52016561]
[1772455023407,1.29205643,1934.9,1933.6,2.52016561]
[1772455023705,1.24525446,1934.8,1933.7,2.52016561]
[1772455023868,1.29352961,1935.0,1933.7,2.52016561]
[1772455024375,0.00153886,1935.0,1933.9,2.52016561]
[1772455026281,0.00153886,1935.0,1934.1,2.52016561]
[1772455027002,1.24679332,1935.0,1934.1,2.52016561]
[1772455027200,2.64555549,1934.9,1933.8,2.52016561]
[1772455027404,1.24525446,1934.7,1933.8,3.81291803]
[1772455027707,0.00153886,1935.0,1933.9,2.52016561]
[1772455028602,0.00153886,1935.0,1934.1,2.52016561]
[1772455029370,0.00153886,1935.0,1934.2,2.52016561]
[1772455029572,0.00153886,1935.0,1934.3,2.52016561]
[1772455029772,5.16669409,1935.5,1934.4,2.52016561]
[1772455029773,1.29169309,1935.5,1934.4,2.52016561]
[1772455030504,1.29169309,1935.5,1934.5,1.29232359]
[1772455031620,1.29169309,1935.5,1934.6,2.52016561]
[1772455031906,1.29164193,1935.6,1934.6,2.52016561]
[1772455032723,0.00353,1935.7,1934.7,1.29219]
[1772455032888,0.00353,1935.7,1934.7,3.81235561]
[1772455033069,7.375403,1935.1,1934.7,3.81235561]
[1772455034588,7.27802832,1935.1,1934.7,3.81235561]
[1772455035604,7.27802832,1935.1,1934.3,10.78828804]
[1772455035903,7.27802832,1935.1,1934.4,5.61858264]
[1772455036696,7.27802832,1935.1,1934.5,1.29232359]
[1772455037410,14.21185819,1935.1,1934.2,3.67848883]
[1772455037586,6.88713169,1934.7,1933.8,0.0011]
[1772455038878,1.29225679,1934.6,1933.8,0.0011]
[1772455039723,6.93413402,1934.6,1933.8,0.0011]
[1772455040388,5.0,1934.3,1933.8,0.0011]
[1772455040591,5.0,1934.3,1933.8,5.86362625]
[1772455041812,6.2924661,1934.3,1933.8,0.0011]
[1772455042416,6.29246639,1934.3,1933.8,0.0011]
[1772455042627,11.93434362,1934.3,1933.8,0.0011]
[1772455043407,5.64187723,1934.2,1933.8,0.0011]
[1772455043795,1.29259086,1934.1,1933.8,0.0011]
[1772455044525,6.93446809,1934.1,1933.7,0.0011]
[1772455045216,6.93446809,1934.1,1933.9,0.0011]
[1772455045424,6.93446809,1934.1,1933.7,0.0011]
[1772455045805,6.93446809,1934.1,1933.8,0.0011]
[1772455046928,5.0,1934.3,1933.8,5.86362625]
[1772455047116,3.85625789,1934.6,1933.8,5.86362625]
[1772455047433,8.85625789,1934.6,1933.8,5.86362625]
[1772455047629,14.49813512,1934.6,1933.8,5.86362625]
[1772455048226,14.49813512,1934.6,1933.8,0.0011]
[1772455048436,8.85525789,1934.6,1933.8,7.15641234]
[1772455048731,6.29225789,1934.6,1933.8,7.15641234]
[1772455049021,6.29225789,1934.6,1933.8,5.86362625]
[1772455050033,11.93413512,1934.6,1933.8,5.86362625]
[1772455050215,5.64187723,1934.5,1933.8,0.0011]
[1772455050621,6.88713169,1934.3,1933.8,0.0011]
[1772455050832,5.64187723,1934.3,1933.8,0.0011]
[1772455051038,13.17938958,1934.6,1933.8,0.0011]
[1772455051207,5.64187723,1934.4,1933.8,0.0011]
[1772455051609,5.64187723,1934.2,1933.8,0.0011]
[1772455052138,1.29259086,1934.1,1933.8,0.0011]
[1772455053336,5.64187723,1933.9,1933.6,0.0011]
[1772455053635,2.561,1933.8,1933.0,5.86516511]
[1772455053806,7.5599,1933.8,1933.0,5.86516511]
[1772455054309,1.29285825,1933.7,1933.0,5.86516511]
[1772455054736,4.9989,1933.6,1933.0,0.00263886]
[1772455056836,1.29299198,1933.5,1933.0,0.00263886]
[1772455057413,8.85087999,1933.6,1933.0,0.00263886]
[1772455057613,3.85159086,1934.2,1933.1,5.86362625]
[1772455057933,0.001,1933.7,1933.1,5.86362625]
[1772455058823,0.001,1933.7,1933.2,7.15571888]
[1772455059720,0.001,1933.7,1933.2,5.86252625]
[1772455060842,3.84559086,1934.2,1933.2,7.15566104]
[1772455060843,1.29259086,1934.2,1933.2,7.15566104]
[1772455061031,4.9989,1934.1,1933.2,7.15566104]
[1772455062511,10.64077723,1934.1,1933.2,7.15566104]
[1772455063039,1.2926577,1934.0,1933.2,7.15566104]
[1772455065841,0.01824027,1933.9,1933.2,7.15569496]
[1772455066052,0.01824027,1933.9,1933.2,7.1557153]
[1772455066924,0.01824027,1933.9,1933.3,5.86252625]
[1772455068048,0.01824027,1933.9,1933.5,5.88073721]
[1772455068215,1.31098879,1933.9,1933.3,5.88073721]
[1772455068414,1.31098879,1933.9,1933.3,8.20273721]
[1772455069845,0.01824027,1933.9,1933.3,8.20273721]
[1772455070043,0.01824027,1933.9,1933.4,7.17379607]
[1772455070226,1.3109696,1933.9,1933.4,5.88073721]
[1772455070610,0.01824027,1933.9,1933.4,5.88073721]
[1772455071116,0.001,1933.8,1933.4,5.88073721]
[1772455071317,0.01824027,1933.7,1933.4,5.88073721]
[1772455072352,7.52955759,1933.7,1933.1,0.0011]
[1772455081653,1.29249455,1934.3,1933.2,5.88073721]
[1772455081958,7.51094793,1934.3,1933.2,5.88073721]
[1772455082834,6.21845338,1934.1,1933.2,5.88073721]
[1772455083025,1.2926577,1934.0,1933.3,7.17386295]
[1772455083972,0.001,1933.8,1933.3,7.17386295]
[1772455084523,0.001,1933.8,1933.7,5.001562]
[1772455085229,0.001,1933.8,1933.3,7.17386295]
[1772455086039,0.001,1933.8,1933.3,5.88073721]
[1772455086663,7.51096461,1934.3,1933.5,5.88073721]
[1772455086954,1.29242959,1934.4,1933.5,5.88073721]
[1772455087155,1.29242959,1934.4,1933.7,5.88073721]
[1772455087761,7.51082161,1934.5,1933.7,5.88073721]
[1772455087986,7.51078171,1934.5,1933.7,5.88073721]
[1772455088270,1.29232833,1934.5,1933.7,5.88073721]
[1772455088642,1.29217234,1934.8,1933.7,5.88073721]
[1772455089076,1.2921023,1934.9,1933.8,5.88073721]
[1772455089284,5.17062929,1935.0,1934.0,5.88073721]
[1772455089475,1.29452852,1935.0,1934.0,5.88073721]
[1772455089682,0.00253886,1935.0,1934.0,5.88073721]
[1772455090195,0.00253886,1935.0,1934.2,5.88073721]
[1772455091278,0.00253886,1935.0,1934.4,5.88073721]
[1772455091574,0.00253886,1935.0,1934.5,5.88073721]
[1772455093183,0.00253886,1935.0,1934.6,7.55510117]
[1772455094889,7.27802832,1935.1,1934.7,6.26284438]
[1772455095074,0.001,1935.4,1934.8,8.55484438]
[1772455095657,0.001,1935.4,1934.9,7.55490081]
[1772455096758,0.00353,1935.7,1935.0,6.26284438]
[1772455097159,0.00153886,1936.0,1935.0,6.26284438]
[1772455097862,0.00153886,1936.0,1935.3,6.33586258]
[1772455098060,0.00153886,1936.0,1935.5,6.33586258]
[1772455099990,0.00153886,1936.0,1935.7,6.33586258]
[1772455100218,0.00153886,1936.0,1935.8,8.62586258]
[1772455100563,6.35045075,1936.5,1935.9,6.33586258]
[1772455101016,1.29090877,1936.7,1935.9,6.33586258]
[1772455101287,7.64135952,1936.7,1935.9,6.33586258]
[1772455101863,7.64135952,1936.7,1936.0,1.29132231]
[1772455102262,7.64135952,1936.7,1936.0,7.62718489]
[1772455103471,6.35045075,1936.7,1936.0,7.62718489]
[1772455103668,0.001,1936.8,1936.0,7.62718489]
[1772455103993,1.29179523,1936.8,1936.0,7.62718489]
[1772455104578,0.001,1936.8,1936.0,7.62718489]
[1772455104912,0.00153886,1937.0,1936.2,6.33586258]
[1772455105062,0.00153886,1937.0,1936.4,6.33586258]
[1772455105703,2.52249507,1937.9,1936.3,2.286]
[1772455105704,6.35045075,1938.9,1936.5,6.33586258]
[1772455105909,0.00153886,1938.0,1937.3,1.29045578]
[1772455106120,0.00153886,1938.0,1937.2,5.16182315]
[1772455106121,6.35198961,1938.0,1937.4,2.293]
[1772455106264,6.35198961,1938.0,1937.3,2.293]
[1772455106465,6.35198961,1938.0,1937.1,2.293]
[1772455106663,6.35045075,1937.8,1937.1,2.293]
[1772455107968,7.64057484,1937.8,1937.2,1.2905224]
[1772455108174,7.64057484,1937.8,1937.1,3.58356989]
[1772455108492,0.001,1937.7,1937.1,3.58356989]
[1772455109670,0.001,1937.7,1937.1,9.91943247]
[1772455111585,0.001,1937.7,1937.2,6.33586258]
[1772455111783,6.35045075,1937.6,1936.8,13.78775173]
[1772455111987,6.35045075,1937.6,1936.9,1.29072228]
[1772455112385,7.64074305,1937.6,1936.9,7.62658486]
[1772455113608,7.64074305,1937.6,1936.7,5.16329894]
[1772455113913,7.64074305,1937.6,1936.8,2.288]
[1772455114284,7.64074305,1937.6,1936.5,2.287]
[1772455114285,6.35045075,1937.4,1936.5,2.287]
[1772455114484,6.35045075,1937.2,1936.5,2.287]
[1772455114685,7.59499898,1937.2,1936.1,2.287]
[1772455114935,7.59499898,1937.2,1936.0,0.00153886]
[1772455115136,7.59499898,1937.2,1936.0,3.57983278]
[1772455116712,6.35045075,1937.0,1936.0,3.57983278]
[1772455117887,6.35045075,1937.0,1936.0,9.91569536]
[1772455118094,6.35045075,1937.0,1936.1,6.33586258]
[1772455118801,1.29072228,1936.9,1936.2,1.29118892]
[1772455119395,7.64115493,1937.0,1936.2,1.29118892]
[1772455119614,1.29058902,1937.1,1936.2,7.6270515]
[1772455119791,1.29057584,1937.2,1936.3,6.33586258]
[1772455119992,7.64102659,1937.2,1936.4,2.283]
[1772455121012,7.64102659,1937.2,1936.5,1.29098889]
[1772455122137,6.35045075,1936.9,1936.2,0.0011]
[1772455122440,6.35045075,1936.9,1936.2,1.29227026]
[1772455122625,6.35045075,1936.9,1936.2,0.0011]